{"text_format":"1","workbook":"xlsx","n_sheets":3,"sheets":["Fiche","Exe","Inscription"],"not_rendered":{"charts":0,"images":3,"macros":1,"external_links":0,"defined_names":8,"comments":0,"pivot_tables":0},"unopened":[],"bounds":{"document_bytes":16777216,"sheet_cells":100000,"rows_first":2000,"rows_last":500,"rows_between":2000,"halvings":0,"cell_chars":16384,"cell_head_chars":4096},"cells_cut":0,"cells_raw":0,"read":"whole","date_system":"1900"}

{"sheet":"Fiche","index":0,"n_rows":124,"n_cols":28,"rows_kept":124,"cut":false,"hidden":true,"merged":[[41,14,42,20],[38,5,39,7],[24,5,25,7],[38,8,39,12],[24,8,25,12],[22,0,22,30],[36,0,36,30],[10,0,10,30],[63,26,63,29],[18,8,18,13],[18,25,18,29],[20,0,20,7],[20,8,20,9],[20,18,20,20],[20,21,20,22],[20,23,20,24],[23,3,23,8],[24,1,25,4],[24,13,25,15],[24,17,25,18],[24,19,25,22],[24,24,25,26],[26,1,26,30],[27,1,27,3],[27,4,27,15],[29,1,29,7],[29,8,29,14],[29,17,29,18],[15,1,15,7],[15,8,15,14],[15,17,15,18],[15,19,15,29],[17,0,17,7],[17,8,17,9],[17,10,17,13],[17,17,17,24],[17,25,17,26],[17,27,17,29],[11,0,11,30],[13,1,13,3],[13,4,13,15],[13,17,13,18],[13,19,13,29],[7,1,7,30],[0,6,1,25],[3,6,3,25],[5,6,5,25],[0,27,5,30],[29,19,29,29],[27,19,27,29],[27,17,27,18],[31,0,31,7],[31,8,31,9],[31,10,31,13],[31,17,31,24],[31,25,31,26],[31,27,31,29],[32,8,32,13],[32,25,32,29],[34,0,34,7],[34,8,34,9],[34,18,34,20],[34,21,34,22],[34,23,34,24],[37,3,37,8],[38,1,39,4],[38,13,39,15],[38,17,39,18],[38,19,39,22],[38,24,39,26],[73,9,74,25],[73,26,73,30],[104,5,104,17],[104,18,104,19],[104,20,104,29],[101,0,102,29],[89,4,89,30],[90,4,90,30],[91,4,91,30],[92,4,92,30],[93,4,93,30],[94,4,94,30],[88,6,88,30],[76,6,76,26],[82,6,82,14],[85,6,85,14],[84,6,84,14],[83,6,83,14],[110,1,110,6],[110,7,110,8],[110,9,110,17],[110,19,110,21],[110,22,110,29],[95,0,95,30],[97,0,97,30],[98,0,98,30],[104,3,104,4],[115,14,116,29],[115,4,115,8],[115,9,115,13],[96,0,96,30],[117,0,117,30],[118,0,118,30],[119,0,119,30],[121,6,121,13],[123,0,123,30],[112,1,112,6],[112,7,112,8],[112,9,112,17],[112,19,112,21],[112,22,112,29],[114,0,114,3],[114,4,114,5],[114,7,114,8],[114,9,114,13],[114,14,114,29],[106,3,106,5],[106,6,106,29],[108,5,108,6],[108,7,108,19],[108,25,108,29],[67,0,67,2],[67,3,67,8],[67,10,67,13],[67,14,67,19],[67,22,67,24],[66,0,66,2],[60,9,60,13],[66,3,66,8],[66,10,66,13],[66,14,66,19],[66,22,66,24],[64,11,64,30],[62,2,62,8],[62,11,62,18],[62,21,62,24],[63,2,63,8],[63,11,63,18],[63,21,63,24],[65,3,65,8],[65,13,65,18],[65,23,65,28],[60,14,60,19],[60,20,60,25],[62,26,62,29],[69,0,69,2],[69,3,69,8],[69,10,69,13],[69,14,69,19],[69,22,69,24],[68,0,68,2],[68,3,68,8],[68,10,68,13],[68,14,68,19],[68,22,68,24],[60,26,60,30],[55,9,55,13],[55,14,55,19],[55,21,55,25],[55,26,55,30],[56,14,56,19],[56,9,56,13],[56,20,56,25],[56,26,56,30],[57,9,57,13],[57,20,57,25],[57,26,57,30],[59,14,59,19],[57,14,57,19],[58,14,58,19],[58,9,58,13],[58,20,58,25],[58,26,58,30],[59,9,59,13],[59,20,59,25],[59,26,59,30]]}
[null,null,null,null,null,null,"FOYER RURAL D'ABLIS"]
[]
[]
[null,null,null,null,null,null,"Fiche d'Inscription  2024-2025"]
[]
[null,null,null,null,null,null,"Tout dossier incomplet ne sera pas enregistré."]
[]
[null,"Renseignements concernant les Adhérents."]
[]
[]
["***************************************************************************************"]
[" Certificat médical datant de moins de 3 mois  OBLIGATOIRE pour les activités sportives."]
[]
[null,"NOM :",null,null,null,null,null,null,null,null,null,null,null,null,null,null,null,"Prénom :"]
[]
[null,"Date de Naissance :",null,null,null,null,null,null,null,null,null,null,null,null,null,null,null,"Section :"]
[]
["(1) Attestation / Facture :",null,null,null,null,null,null,null,"OUI",null,"NON",null,null,null,null,null,null,"(2) Droit à l'image : ",null,null,null,null,null,null,null,"OUI",null,"NON"]
[null,null,null,null,null,null,null,null,"Rayer la mention inutile",null,null,null,null,null,null,null,null,null,null,null,null,null,null,null,null,"Rayer la mention inutile"]
[]
["Certificat Médical :",null,null,null,null,null,null,null,null,null,null,null,null,null,null,null,null,null,"Sexe :",null,null,"M",null,"F"]
[]
["Zone réservée au Responsable Section."]
[]
[null,"Adhésion :",null,null,null,null,null,null,"Cotisation :",null,null,null,null,null,null,null,null,"Licence :",null,null,null,null,null,null," Total :"]
[]
[]
[null,"NOM :",null,null,null,null,null,null,null,null,null,null,null,null,null,null,null,"Prénom :"]
[]
[null,"Date de Naissance :",null,null,null,null,null,null,null,null,null,null,null,null,null,null,null,"Section :"]
[]
["(1) Attestation / Facture :",null,null,null,null,null,null,null,"OUI",null,"NON",null,null,null,null,null,null,"(2) Droit à l'image : ",null,null,null,null,null,null,null,"OUI",null,"NON"]
[null,null,null,null,null,null,null,null,{"$f":"I19","v":"Rayer la mention inutile"},null,null,null,null,null,null,null,null,null,null,null,null,null,null,null,null,{"$f":"Z19","v":"Rayer la mention inutile"}]
[]
["Certificat Médical :",null,null,null,null,null,null,null,null,null,null,null,null,null,null,null,null,null,"Sexe :",null,null,"M",null,"F"]
[]
["Zone réservée au Responsable Section."]
[]
[null,"Adhésion :",null,null,null,null,null,null,"Cotisation :",null,null,null,null,null,null,null,null,"Licence :",null,null,null,null,null,null," Total :"]
[]
[]
[null,null,null,null,null,null,null,null,null,null,null,null,null,null,"Total Inscriptions :"]
[]
[]
[]
[]
[]
[]
[]
[]
[]
[]
[]
[]
[]
[null,null,null,null,null,null,null,null,null,"Montant",null,null,null,null,"Numéro",null,null,null,null,null,null,"Banque",null,null,null,null,"Nom"]
[null,null,"Chèque Unique (05/10)"]
[null,null,null,null,null,null,null,null,null,"Montant",null,null,null,null,"Numéro",null,null,null,null,null,"Banque",null,null,null,null,null,"Nom"]
[null,null,"Chèque 5 Octobre   "]
[null,null,"Chèque 5 Février   "]
[null,null,"Chéque 5 Avril   "]
[]
[null,null,"Chèque CV / SP / PASS",null,null,null,null,null,null,null,null,"Chèque CAF",null,null,null,null,null,null,null,null,null,"Espèces",null,null,null,null,"CB"]
[]
[null,null,null,null,null,null,null,null,null,null,null,"Zone réservée au Responsable Trésorerie"]
[null,null,null,"Chèque Caution *",null,null,null,null,null,null,null,null,null,"Chèque Adhérent",null,null,null,null,null,null,null,null,null,"Chèque CE"]
["Montant",null,null,null,null,null,null,null,null,null,"Montant",null,null,null,null,null,null,null,null,null,null,null,"Montant"]
["Banque",null,null,null,null,null,null,null,null,null,"Banque",null,null,null,null,null,null,null,null,null,null,null,"Banque"]
["Numéro",null,null,null,null,null,null,null,null,null,"Numéro",null,null,null,null,null,null,null,null,null,null,null,"Numéro"]
["Nom",null,null,null,null,null,null,null,null,null,"Nom",null,null,null,null,null,null,null,null,null,null,null,"Nom"]
["*Les chèques de caution seront encaissés le 5 Février 2025 si aucun retour de l'Adhérent"]
[]
[]
[null,null,null,null,null,null,null,null,null,"FOYER RURAL D'ABLIS",null,null,null,null,null,null,null,null,null,null,null,null,null,null,null,null,"Fiche-20/06/2024"]
[]
[]
[null,null,null,null,null,null,"Fiche d'Inscription  2024-2025"]
[]
[null,null,null,null,null,null,"Pour l’Adhésion 2 Tarifs - Saison 2024/2025"]
[null,null,null,null,null,null,null,null,"17 Euros ",null,null,null,null,null,null,null,null,null,null,null,"27 Euros"]
[null,null,null,null,null,null,"Pour la commune d’ABLIS",null,null,null,null,null,null,null,null,null,null,null,null,"Pour les Extérieurs de la "]
[null,null,null,null,null,null,"Les hameaux de la commune sont :",null,null,null,null,null,null,null,null,null,null,null,null,"Commune  d’ABLIS"]
[null,null,null,null,null,null,"Guéherville"]
[null,null,null,null,null,null,"Long Orme"]
[null,null,null,null,null,null,"Mainguérin"]
[null,null,null,null,null,null,"Ménainville"]
[]
[null,null,null,null,null,null,null,null,null,"Madame, Monsieur  "]
[null,null,null,null,null,null,"Au cours de l’année, à certaines occasions, votre enfant ou vous-même êtes"]
[null,null,null,null,"susceptibles d’être photographié ou filmé. Ces images seront strictement réservées pour le site"]
[null,null,null,null,"du FOYER RURAL D’ABLIS. Conformément à la loi, le libre accès aux données qui vous concernent est"]
[null,null,null,null,"garanti. Vous pouvez à tout moment vérifier l’usage qui en est fait et dispose du droit de retrait de ces données"]
[null,null,null,null,"si vous le jugez utile. "]
[null,null,null,null,"Pour l’édition d’une attestation, merci de bien vouloir rayer la mention inutile (1) pour chaque adhérent."]
[null,null,null,null,"Pour le droit à l'image, merci de bien vouloir rayer la mention inutile (2) pour chaque adhérent. "]
["Nous vous rappelons que le certificat médical (moins de 3 mois) est obligatoire pour les activités sportives."]
[]
["A partir du 1er Novembre 2024 tous les adhérents devront être à jour pour le certificat médical"]
[" sous peine de se voir exclure de l'activité jusqu’à réception du certificat médical"]
[]
[]
["Renseignements concernant l'adhérent ou son Représentant Legal (si mineur)"]
[]
[]
[null,null,null,"NOM :",null,null,null,null,null,null,null,null,null,null,null,null,null,null,"Prénom :"]
[]
[null,null,null,"Adresse :"]
[]
[null,null,null,null,null,"Ville :",null,null,null,null,null,null,null,null,null,null,null,null,null,null,null,"Code Postal :"]
[]
["(","Parent(s)/Tuteur(s) :",null,null,null,null,null,"Tél-1 :",null,null,null,null,null,null,null,null,null,null,null,"Tél-2 :"]
[]
[]
[]
["Adresse Mail :",null,null,null,"OUI",null,null,"NON",null,"Adresse Mail :",null,null,null,null,""]
[null,null,null,null,{"$f":"I19","v":"Rayer la mention inutile"},null,null,null,null,null,null,null,null,null,"( Adresse Mail en MAJUSCULES )"]
[]
["Je soussigné(e), M ou Mme………………………..……...…….………… , déclare avoir pris connaissance du règlement intérieur"]
["et des statuts du Foyer Rural d'ABLIS affichés dans le local, le jour des inscriptions, ou sur présentation de ces "]
["documents, par le correspondant au moment de l'inscription. "]
[]
[null,"Fait à ABLIS   le",null,null,null,null,null,null,null,null,null,null,null,null,null,null,null,"  Signature"]
[]
["Les informations recueillies sont nécessaires pour votre adhésion. Elles font l'objet d'un traitement informatique et sont destinées au secrétariat du Foyer Rural.\nEn application de l'article 35 de la loi du 06/01/78, vous bénéficiez d'un droit d'accès et de rectification aux informations qui vous concernent. Si vous souhaitez exercer ce \ndroit et obtenir communication des informations vous concernant, veuillez-vous adresser au secrétariat du Foyer Rural."]

{"sheet":"Exe","index":1,"n_rows":21,"n_cols":14,"rows_kept":21,"cut":false,"hidden":true,"merged":[]}
["Activité","Sexe","Attestation","Droit à l'image","Mail",{"$f":"Fiche!B14","v":"NOM :"},{"$f":"Fiche!R14","v":"Prénom :"},{"$f":"Fiche!B16","v":"Date de Naissance :"},{"$f":"Fiche!R16","v":"Section :"},{"$f":"Fiche!S21","v":"Sexe :"},{"$f":"Fiche!R32","v":"(2) Droit à l'image : "},{"$f":"Fiche!A32","v":"(1) Attestation / Facture :"}]
["Basket"]
["Escalade"]
["Sport d'opposition 6/7"]
["Judo > 8"]
["Taïso Adulte "]
["Karaté",null,"Mail oui/non",null,null,null,null,null,null,null,null,null,"Resultat","Imprime si \"\""]
["Qi Gong",null,1,null,null,{"$f":"IF(F2=\"\",1,0)","v":1},1,1,1,1,1,1,{"$f":"F8+G8+H8+J8+K8+L8","v":6},{"$f":"IF(OR(M8=0,M8=6),1,\"\")","v":1}]
["Gym Fitness",null,null,null,null,1,1,1,1,1,1,1,{"$f":"F9+G9+H9+J9+K9+L9","v":6},{"$f":"IF(OR(M9=0,M9=6),1,\"\")","v":1}]
["Eveil Motricité 3/6"]
["Gym Dynamique 7/12"]
["Danse Eveil Initiation 4/7",null,"Adresse Mail"]
["Danse Moderne >7",null,""]
["Danse Cubaine"]
["Dessin Enfant 5/8"]
["Dessin Adolescent 9/12"]
["Dessin Adultes >12"]
["Poterie"]
["Art Floral"]
["Photo"]
["Méditation Cristalline"]

{"sheet":"Inscription","index":2,"n_rows":98,"n_cols":23,"rows_kept":98,"cut":false,"hidden":false,"merged":[[7,2,7,9],[9,2,9,9],[8,2,8,9],[14,2,14,9],[13,2,13,9],[14,10,15,10],[22,1,22,8],[22,9,22,11],[24,1,24,8],[24,9,24,11],[21,2,21,9],[23,2,23,9],[16,2,16,9],[18,2,18,9],[20,1,20,10]]}
[]
[]
[]
["Mise à jour"]
["2021-08-19"]
[null,null,null,null,null,"",null,null,null,null,null,null,null,null,null,null,null,null,null,null,""]
[]
[null,null,"Bonjour"]
[null,null,"Sur cette page, vous trouvez tous les éléments  pour votre inscription aux activités 2024-2025 du FRA."]
[null,null,"Celle-ci sera effective à la date du forum, sous réserve de la disponibilité et l'ouverture de la section."]
[]
[null,null,null,null,null,null,"2 Possibilités vous sont proposées",null,null,"",null,null,null,null,null,null,null,null,null,null,null,null,""]
[]
[null,null,"1) En cliquant sur le bouton  \"Fiche d'Inscription PDF\" ci-dessus.",null,null,null,null,null,null,null,null,null,null,null,null,null,null,null,null,null,null,null,""]
[null,null,"NB: Si vous avez des problèmes pour l'utilisation du formulaire la fiche inscription est disponible en PDF."]
[null,null,null,null,null,null,null,null,null,""]
[null,null,"2) Vous vous présentez le jour du forum le 07 Septembre 2024 au gymnase d'ABLIS de 10h00/16h00"]
[]
[null,null,"Les règlements se feront le jour du forum (CB Possible)."]
[]
[null,"        Nous vous rappelont  que le certificat médical (moins de 3 mois) est obligatoire pour les activités sportives."]
[null,null,"A partir du 1 er Novembre 2024 tous les adhérents devront être à jour pour le certificat médical sous peine de se voir exclure de l'activité jusqu’à réception du certificat médical."]
[null,null,null,null,null,null,null,null,null,null,null,null,null,null,null,null,null,null,null,""]
[null,null,"Dans l'attente de votre rencontrer, je vous souhaite une très bonne année sportive ou/et culturelle 2023/2024 au Foyer Rural d'ABLIS."]
[]
[null,null,"Cordialement"]
[]
[]
[]
[]
[]
[]
[]
[]
[null,null,null,null,null,null,null,null,"",null,null,null,null,null,null,null,null,null,null,""]
[]
[]
[]
[]
[]
[]
[]
[]
[]
[]
[]
[null,null,null,null,null,null,null,null,"",null,null,null,null,null,null,null,null,null,null,""]
[]
[]
[]
[]
[]
[]
[]
[]
[]
[]
[]
[null,null,null,null,null,null,null,null,"",null,null,null,null,null,null,null,null,null,null,""]
[]
[]
[]
[]
[]
[]
[]
[]
[]
[]
[]
[]
[]
[]
[]
[]
[]
[]
[]
[]
[]
[]
[]
[]
[]
[]
[]
[]
[]
[]
[]
[]
[]
[]
[]
[]
[]
[]
[null,null,null,null,null,null,""]